Cogmind - Beta 15 @@@ ROGUE MODE // 2025.07.14 @ 14:30:25 Player: vilepis Result: Destroyed by 6K-1NE(R) with Subdweller Machine Gun Performance ------------- Evolutions (0) 0 Regions Visited (2) 400 Robots Destroyed (19) 95 Value Destroyed (555) 555 Prototype IDs (1) 20 Alien Tech Used (0) 0 Bonus (-17) -17 TOTAL SCORE: 1053 Bonus ------- Friendly Fire -17 Cogmind --------- Core Integrity 0/250 Matter 292/300 Energy 261/265 System Corruption 0% Temperature Cool (0) Movement Walking (190) Ox1 Location -10/Subcaves Parts ------- > --- POWER (1+1) ------ Improved Ion Engine > --- PROPULSION (2+1) - Aluminum Leg Aluminum Leg > --- UTILITY (2+1) ---- Scrap Shield (+) Rainbow Chip > --- WEAPON (2+1) ----- Beam Cannon Assault Rifle (+) Battle Cannon > --- INVENTORY (5) ---- Improved Heat Sink Medium Armor Plating Medium Armor Plating Makeshift Spear Peak State ------------ > --- POWER ------------ Improved Ion Engine > --- PROPULSION ------- Aluminum Leg Aluminum Leg > --- UTILITY ---------- Scrap Shield Rainbow Chip > --- WEAPON ----------- Beam Cannon Assault Rifle Battle Cannon > --- INVENTORY -------- Improved Heat Sink Medium Armor Plating Medium Armor Plating Makeshift Spear [Rating: 26] Favorites ----------- Power Improved Ion Engine Engine Improved Ion Engine Power Core Light Nuclear Core Propulsion Aluminum Leg Leg Aluminum Leg Wheel Compact Wheel Utility Scrap Shield Device Improved Heat Sink Storage Small Storage Unit Processor Rainbow Chip Protection Scrap Shield Weapon Beam Cannon Energy Gun Medium Laser Energy Cannon Beam Cannon Ballistic Gun Assault Rifle Ballistic Cannon Battle Cannon Piercing Weapon Makeshift Spear Build | -11 -10 -10 ------- Run | Yrd Mat Sub Slots Evolved . | . . . Power . | . . . Propulsion . | . . . Utility . | . . . Weapon . | . . . Parts Attached 24 | 6 14 4 Power 3 | 1 2 . Engine 2 | 1 1 . Core 1 | . 1 . Reactor . | . . . Propulsion 4 | 2 2 . Treads . | . . . Leg 2 | . 2 . Wheel 2 | 2 . . Hover . | . . . Flight . | . . . Utility 9 | 1 6 2 Device 1 | . 1 . Storage 1 | 1 . . Processor 1 | . . 1 Hackware . | . . . Protection 6 | . 5 1 Artifact . | . . . Weapon 8 | 2 4 2 Energy Gun 3 | 1 2 . Energy Cannon 2 | . 2 . Ballistic Gun 1 | 1 . . Ballistic Cannon 1 | . . 1 Launcher . | . . . Special Weapon . | . . . Impact Weapon . | . . . Slashing Weapon . | . . . Piercing Weapon 1 | . . 1 Special Melee Weapon . | . . . Unidentified Prototypes 1 | . . 1 Parts Lost 5 | . 5 . Power 2 | . 2 . Propulsion 1 | . 1 . Utility 1 | . 1 . Weapon 1 | . 1 . Highest Loss Streak 3 | . 3 . To Critical Strikes . | . . . Average Backups 2 | . . 4 Power . | . . . Propulsion . | . . . Utility 2 | . . 3 Weapon . | . . 1 Tool/Special . | . . . Unused Backups . | . . . Power . | . . . Propulsion . | . . . Utility . | . . . Weapon . | . . . Tool/Special . | . . . Average Slot Usage (%) 83 | . 85 81 Engine 10 | . 6 12 Core 1 | . 4 . Leg 16 | . 4 24 Wheel 6 | . 15 . Storage 3 | . 8 . Processor 1 | . . 2 Protection 13 | . 14 12 Energy Gun 5 | . 13 . Energy Cannon 14 | . 4 22 Ballistic Gun 6 | . 10 3 Peak Build Rating 26 | 6 11 26 Average Rating 12 | 4 8 15 On Entrance 5 | . 6 11 Naked Turns . | . . . Heaviest Build 33 | 14 27 33 Greatest Support 26 | 26 26 20 Greatest Overweight (x) 1 | . 1 1 Average Overweight (x) . | . . 1 Largest Inventory Capacity 8 | 8 8 5 Average Capacity 5 | 6 6 5 Most Carried 5 | . 4 5 Average Carried 2 | . . 4 Final Capacity 8 | 8 5 5 Final Carried 4 | . 4 4 Class Distribution -------------------- 84% | Mutant 15% | Tank Dominant Class ---------------- Mutant | -10/Materials Mutant | -10/Subcaves Resources | -11 -10 -10 ----------- Run | Yrd Mat Sub Matter Collected 757 | 260 292 205 Remotely . | . . . Salvage Created 623 | . 414 209 Parts 38 | . 28 10 Haulers Intercepted . | . . . Recyclers Shooed . | . . . Parts Field Recycled . | . . . Retrieved Matter . | . . . Parts Self-Destructed 13 | . . 13 Prevented . | . . . Kills | -11 -10 -10 ------- Run | Yrd Mat Sub Combat Hostiles Destroyed 18 | . 13 5 Guns 12 | . 11 1 Cannons 6 | . 2 4 Classes Destroyed 4 | . 3 1 Watcher 1 | . 1 . Swarmer 6 | . 6 . Grunt 10 | . 7 3 Subdweller 2 | . . 2 Best Kill Streak 3 | . 3 2 Combat Bots Only 3 | . 3 2 Max Kills in Single Turn 2 | . 2 1 Gunslinging 1 | . 1 . Exploded . | . . . Melee . | . . . Uniques/NPCs Destroyed . | . . . Combat | -11 -10 -10 -------- Run | Yrd Mat Sub Hostile Shots Fired 103 | . 76 27 Missed 22 | . 14 8 Hits 81 | . 62 19 Projectile 81 | . 62 19 Critical Strikes 1 | . . 1 Damage Taken 1170 | . 746 424 Core 257 | . 235 22 Absorbed by Shields . | . . . Redirected to Shielding 28 | . 28 . Core Remaining (%) 100 | 100 . . Volleys Fired 65 | . 41 24 Largest 3 | . 2 3 Hottest 140 | . 120 140 Shots Fired 132 | . 75 57 Gun 77 | . 67 10 Cannon 55 | . 8 47 Launcher . | . . . Special . | . . . Kinetic 39 | . 24 15 Thermal 93 | . 51 42 Explosive . | . . . Electromagnetic . | . . . Robot Hit Streak 15 | . 12 15 Robot Miss Streak 3 | . 3 2 Penetration Max . | . . . Secondary Targets 1 | . 1 . Max Gunslinging Chain 1 | . 1 . Shots Hit Robots 82 | . 47 35 Core Hits 31 | . 20 11 Critical Kills . | . . . Critical Parts Destroyed . | . . . Critical Strikes 5 | . 4 1 Burn 4 | . 4 . Blast 1 | . . 1 Melee Attacks 1 | . . 1 Impact . | . . . Slashing . | . . . Piercing 1 | . . 1 Sneak Attacks . | . . . Combat Hostiles . | . . . Follow-up Attacks . | . . . Damage Inflicted 1230 | . 649 581 Guns 620 | . 560 60 Cannons 608 | . 87 521 Explosions . | . . . Melee . | . . . Ramming 2 | . 2 . Kinetic 302 | . 161 141 Thermal 926 | . 486 440 Explosive . | . . . Electromagnetic . | . . . Impact . | . . . Slashing . | . . . Piercing . | . . . Highest Corruption . | . . . Average Corruption . | . . . Corruption Purged . | . . . Corruption Blocked . | . . . Overload Shots . | . . . Overflow Damage . | . . . Projectiles . | . . . Explosions . | . . . Melee . | . . . Knockbacks 1 | . . 1 Impact . | . . . Kinetic 1 | . . 1 Secondary . | . . . Self-Inflicted Damage 1 | . 1 . Shots . | . . . Rammed 1 | . 1 . Targets Rammed 1 | . 1 . Kicked . | . . . Crushed . | . . . Highest Temperature 708 | . 708 87 Average Temperature 174 | . 223 17 Received Heat Transfer 321 | . 210 111 Effects 20 | . 20 . Shutdowns 2 | . 2 . Energy Bleed 2 | . 2 . Interference 2 | . 2 . Matter Decay 5 | . 5 . Short Circuit 1 | . 1 . Damage (minor) 2 | . 2 . Damage (major) 5 | . 5 . Damage (core) 1 | . 1 . Siege Activations . | . . . Martial Activations . | . . . Shielding Activations . | . . . Robots Disrupted . | . . . Combat Hostiles . | . . . Robots Corrupted . | . . . Combat Hostiles . | . . . Parts Fried . | . . . Impact Corruptions . | . . . Robots Melted . | . . . Combat Hostiles . | . . . Parts Melted 5 | . 3 2 Heat Transferred 2442 | . 1517 925 Parts Sabotaged . | . . . Parts Stolen . | . . . Parts Stripped . | . . . Power Chain Reactions . | . . . Alert | -11 -10 -10 ------- Run | Yrd Mat Sub Maximum Alert Level . | . . . Low Security (%) 100 | 100 100 . Level 1 . | . . . Level 2 . | . . . Level 3 . | . . . Level 4 . | . . . Level 5 . | . . . High Security . | . . . Max Security . | . . . Peak Influence 72 | . 72 . Initial . | . . . Average 24 | . 25 . Influence Increases 456 | . 386 70 Destroy 0b10 Robot/C 320 | . 260 60 Destroy 0b10 Robot/NC 5 | . 5 . Destroy Leader 72 | . 62 10 Successful Hack 12 | . 12 . Disable Machine 30 | . 30 . Destroy Structure 2 | . 2 . Lose Combat Pursuer 15 | . 15 . Influence Decreases 414 | . 356 58 Entered New Map 15 | . . 15 Time Decay 349 | . 306 43 Lost Part 50 | . 50 . Squads Dispatched 2 | . 2 . Investigation 1 | . 1 . Extermination . | . . . Reinforcement 1 | . 1 . Assault . | . . . Garrison . | . . . Intercept . | . . . Searches Triggered . | . . . Construction Impeded . | . . . Haulers Reinforced . | . . . Active Scanning Responses . | . . . Cargo Convoy Interrupts . | . . . Stealth | -11 -10 -10 --------- Run | Yrd Mat Sub Distress Signals 3 | . 3 . Communications Jammed . | . . . Distress Signals . | . . . Times Spotted 37 | . 24 13 Peak Tracking Total 5 | . 5 2 Tactical Retreats 1 | . 1 . Traps | -11 -10 -10 ------- Run | Yrd Mat Sub Traps Triggered 2 | . 2 . Indirectly . | . . . Trap Hack Attempts . | . . . Triggered . | . . . Disarmed . | . . . Reprogrammed . | . . . Reused . | . . . Traps Extracted . | . . . Installed . | . . . Triggered . | . . . Machines | -11 -10 -10 ---------- Run | Yrd Mat Sub Machines Disabled 3 | . 2 1 Max in Single Turn 1 | . 1 1 Machines Repaired . | . . . Machines Dismantled . | . . . Machines Sabotaged . | . . . Overloaded Fab Kills . | . . . Hacking | -11 -10 -10 --------- Run | Yrd Mat Sub Machines Accessed 3 | . 2 1 Terminals 2 | . 2 . Fabricators . | . . . Repair Stations . | . . . Recycling Units . | . . . Scanalyzers . | . . . Garrison Access . | . . . Total Hacks 7 | . 4 3 Successful 5 | . 2 3 Failed 2 | . 2 . Catastrophic 2 | . 2 . Database Lockouts . | . . . Manual . | . . . Terminals 4 | . 4 . Fabricators . | . . . Repair Stations . | . . . Recycling Units . | . . . Scanalyzers . | . . . Garrison Access . | . . . Terminal Hacks 5 | . 2 3 Record 4 | . 1 3 Locate Traps 1 | . 1 . Fabricator Hacks . | . . . Repair Station Hacks . | . . . Recycling Unit Hacks . | . . . Scanalyzer . | . . . Garrison Access Hacks . | . . . Unauthorized Hacks . | . . . Terminals . | . . . Fabricators . | . . . Repair Stations . | . . . Recycling Units . | . . . Scanalyzers . | . . . Garrison Access . | . . . Data Cores Recovered . | . . . Used . | . . . Hacking Detections 1 | . 1 . Full Trace Events 1 | . 1 . Feedback Events . | . . . Feedback Blocked . | . . . Robot Schematics Acquired . | . . . Robots Built . | . . . Authchips . | . . . Time . | . . . Total Robot Build Rating . | . . . Part Schematics Acquired . | . . . Parts Built . | . . . Authchips . | . . . Time . | . . . Total Part Build Rating . | . . . Parts Repaired . | . . . Time . | . . . Parts Recycled . | . . . Recycled Matter . | . . . Retrieved Matter . | . . . Retrieved Components . | . . . Parts Scanalyzed . | . . . Part Schematics Acquired . | . . . Parts Damaged . | . . . Bothacking | -11 -10 -10 ------------ Run | Yrd Mat Sub Used RIF Installer . | . . . Robots Hacked . | . . . Non-combat . | . . . Combat . | . . . Robot Hacks Applied . | . . . Relay Couplers Released . | . . . Fabnet Peak Effective % . | . . . Robots Rewired . | . . . Allies Hacked . | . . . Hacks Repelled . | . . . Allies | -11 -10 -10 -------- Run | Yrd Mat Sub Total Allies . | . . . Largest Group . | . . . Highest-Rated Group . | . . . Highest-Rated Ally . | . . . Total Orders . | . . . Ally Attacks . | . . . Total Damage . | . . . Kills . | . . . Allies Corrupted . | . . . Allies Melted . | . . . Intel | -11 -10 -10 ------- Run | Yrd Mat Sub Active Infowar (turns) . | . . . Robot Analysis Total . | . . . Derelict Logs Recovered 3 | . . 3 Drone Launches . | . . . Drone Recoveries . | . . . Exploration | -11 -10 -10 ------------- Run | Yrd Mat Sub Turns Passed 2476 | 36 1063 1377 Spaces Moved 1393 | 32 702 659 Core 2 | 2 . . Treads . | . . . Legs 727 | . 68 659 Wheels 664 | 30 634 . Hover . | . . . Flight . | . . . Fastest Speed 50 | 50 90 190 Average Speed 147 | 86 109 190 Slowest Speed 190 | 90 190 190 Overloaded Moves . | . . . Propulsion Burnouts . | . . . Robots Hopped . | . . . Potential Cave-ins . | . . . Cave-ins Triggered . | . . . Exploration Rate (%) 46 | 4 76 59 Regions Visited 2 Branch Regions 1 Pre-discovered Areas 1 | . . 1 Known Exits Taken . | . . . Unknown Exits Taken 2 | 1 1 . Scrap Searched 6 | . . 6 Spaces Dug . | . . . Terrain Destroyed . | . . . Melee . | . . . Projectile . | . . . AOE . | . . . Terrain Rammed . | . . . Walls Destroyed . | . . . Machines Disabled . | . . . Actions | -11 -10 -10 --------- Run | Yrd Mat Sub Total 1685 | 37 914 734 Wait 180 | . 152 28 Move 1391 | 31 701 659 Hop . | . . . Pick Up 7 | . 2 5 Fast Attach 14 | 6 6 2 Attach 2 | . . 2 Detach . | . . . Swap 14 | . 10 4 Drop 7 | . 1 6 Fire 65 | . 41 24 Melee 1 | . . 1 Ram 1 | . 1 . Kick . | . . . Crush . | . . . Escape Stasis . | . . . Rewire . | . . . Trap . | . . . Miscellaneous 3 | . . 3 Route ------- -11/Scrapyard -10/Materials (discovered 4 exits: [*Mat x2] / [*Min] / *Sub) -10/Subcaves (discovered 1 exit: [*Mat]) History --------- Turn | Location | Event 9 | -11/Scrapyard | Discovered new exit (range 16) 37 | -11/Scrapyard | Entered Materials 152 | -10/Materials | Discovered new exit (range 7) 209 | -10/Materials | Discovered new exit (range 13) 311 | -10/Materials | Build established: Mutant 559 | -10/Materials | Core integrity fell below 50% 598 | -10/Materials | Discovered new exit (range 7) 631 | -10/Materials | Discovered new exit (range 10) 810 | -10/Materials | Core integrity fell below 20% 872 | -10/Materials | Lost 3 parts (1p1u1w) 1100 | -10/Materials | Entered Subcaves 1157 | -10/Subcaves | Learned Materials emergency access door positions 1292 | -10/Subcaves | Discovered new exit (range 8) 1602 | -10/Subcaves | Visited Clippyterm 1608 | -10/Subcaves | Learned Factory trap positions 1608 | -10/Subcaves | Learned Research security intel 1805 | -10/Subcaves | Learned 8 Materials zone layouts 1923 | -10/Subcaves | Visited 4L-MR0's lab 2043 | -10/Subcaves | Found Prototype Processor 2051 | -10/Subcaves | Identified Rainbow Chip 2052 | -10/Subcaves | Attached Rainbow Chip, gained temporary slots: Power, Propulsion, Utility, Weapon 2383 | -10/Subcaves | Build established: Tank 2477 | -10/Subcaves | Destroyed by 6K-1NE(R) with Subdweller Machine Gun Last Messages --------------- 02280_ Searching scrap... 02280_ Found Flamer. 02280_ Found Sub. Monowheel. 02280_ Found 63 Matter. 02282_ Searching scrap... 02282_ Found Battle Cannon. 02282_ Found 54 Matter. 02286_ Acquired Battle Cannon. 02287_ Acquired 10 matter. 02427_ G-47 Trooper suffers critical hit (Blast). 02427_ G-47 Trooper destroyed. 02431_ G-34 Mercenary destroyed. 02434_ Acquired 32 matter. 02435_ Aluminum Leg fries itself beyond repair. 02436_ Sml. Laser fries itself beyond repair. 02441_ Ion Engine fries itself beyond repair. 02445_ Particle Gun fries itself beyond repair. 02447_ Aluminum Leg fries itself beyond repair. 02476_ 6K-1NE(R) knocked back. Map ----- +----------------------------------------------------+ | ?????????????????????????????????????????????????? | | ?????????????????????????????????????????????????? | | ?????????????????????????????????????????????????? | | ?????????????????????????????????????????????????? | | ?????????????????????????????????????????????????? | | ?????????????????????????????????????????????????? | | ?????????????????????????????????????????????????? | | ?????????????????????????????????????????????????? | | ?????????????????????????????????????????????????? | | ?????????????????????? ??????????????????????????? | | ???????????????????? ??????????????????????????? | | ???????????????????# ??????????????????????????? | | ??????????????? ##?# ??????????????????????????? | | ????????????? ## ?????????????????????????? | | ????????????? ?????????????????????????? | | ???????????? ???????######????????????? | | ???????????? ??????# ????????????? | | ???????????# ?????# ????????????? | | ???????????# ???## ?????????????? | | ???????????# ??## #??????????????? | | ???????????# ### "#???????????????? | | ??????????## #????????????????? | | ????????? #?????????????????? | | ????????? #?# ####???????????????? | | ???????????????# ###R# % ##??????????????? | | ????????????????## @ R % #??????????????? | | ?????????????????## ## % ##??????????????? | | ?????????????????????## # #??????????????? | | ??????????????????????######## #??????????????? | | ?????????????????????????????## ##?????????????? | | ??????????????????????????????# ##???????#????? | | ?????????????????????????????## ###???? #????? | | ????????????????????????????## #### #?????? | | ????????????????????????????# #?????? | | ????????????????????????????## ## #?????? | | ?????????????????????????????# ##%% # #?????? | | ?????????????????????????????## ! #?###?????? | | ?????????????????????????????## ##????????? | | ????????????????????????????## ####?????? | | ???????????????????????????## ## ? | | ???????????????????????????# | | ???????????????????????????###### ### | | ????????????????????????????????# #?? ## | | ???????????????????????????????## #??? #??? | | ???????????????????????????????# ##???? ????? | | ???????????????????????????????## ###??????#???? | | ???????????????????????????###### ##????????????? | | ???????????????????????????# #?????????????? | | ???????????????????????????# #?????????????? | | ??????????????????????????## #?????????????? | +----------------------------------------------------+ Best States ------------- Heat Dissipation 39 Energy Generation 14 Energy Capacity 265 Matter Stores 300 Matter Capacity 300 Sight Range 16 Terrain Scan Density 10 Armor Coverage 800 Weapon Shielding 33 Evasion (%) 42 Item Schematics ----------------- None Robot Schematics ------------------ None Fabricated ------------ Nothing Repaired ---------- Nothing Alien Tech Used ----------------- None Achievements -------------- None Challenges ------------ None Game ------ Seed PointLargeBroadsword Manual? 0 Play Time 00:17:35 Cumulative 20.4 hours Start 2025.07.14 @ 14:16:20 End 2025.07.14 @ 14:30:25 Sessions 1 Manual Loads 0 Difficulty Rogue Special Mode None Game No. 42 Rogue 42 Adventurer 0 Explorer 0 Win Type - Total 0 Types 0/0/0/0/0/0/0/0/0/0 Lore% 21 Gallery% 21 Achievement% 20 Wizard Run 0 Options --------- Layout 2 ASCII 0 Keyboard 0 Movement Mouse Keybinds 1 Fullscreen 2 Font 32/Smallcaps Map View 50x44 Zoom Use 0% Tactical HUD 1 Map Filters NONE Filters NONE Steam 1 RUN: 48ec8b99-bd0f-42c3-98a1-1c39969b4b3e